Cogmind - Beta 15 @@@ ROGUE MODE // 2025.05.27 @ 11:13:39 Player: pakman Result: Destroyed by as-24117 with Assembled Rifle Performance ------------- Evolutions (0) 0 Regions Visited (4) 800 Robots Destroyed (21) 105 Value Destroyed (438) 438 Prototype IDs (0) 0 Alien Tech Used (0) 0 Bonus (121) 121 TOTAL SCORE: 1464 Bonus ------- Follower Combat Kills 121 Cogmind --------- Core Integrity 0/250 Matter 155/300 Energy 125/125 System Corruption 0% Temperature Cool (0) Movement Rolling (110) Ox2 Location -9/Mines Parts ------- > --- POWER (1) -------- Light Ion Engine > --- PROPULSION (2) --- Light Treads Wheel > --- UTILITY (2) ------ Heat Sink Large Storage Unit > --- WEAPON (2) ------- Small Laser Mining Claw > --- INVENTORY (15) --- Improved Heat Sink Experimental Sensor Array Light Armor Plating Medium Armor Plating Tractor Beam Grenade Launcher Rocket Launcher Peak State ------------ > --- POWER ------------ Light Ion Engine > --- PROPULSION ------- Light Treads Compact Wheel > --- UTILITY ---------- Large Storage Unit Seismic Detector > --- WEAPON ----------- Medium Laser Rocket Launcher > --- INVENTORY -------- Light Ion Engine Wheel Heat Sink Improved Heat Sink Experimental Sensor Array Light Armor Plating Medium Armor Plating Tractor Beam Small Laser Mining Claw [Rating: 10] Favorites ----------- Power Light Ion Engine Engine Light Ion Engine Propulsion Light Treads Treads Light Treads Wheel Compact Wheel Utility Seismic Detector Device Seismic Detector Storage Medium Storage Unit Weapon Medium Laser Energy Gun Medium Laser Launcher Grenade Launcher Slashing Weapon Mining Claw Build | -11 -10 -10 -10 -9 ------- Run | Yrd Mat Min Exi Min Slots Evolved . | . . . . . Power . | . . . . . Propulsion . | . . . . . Utility . | . . . . . Weapon . | . . . . . Parts Attached 21 | 7 7 3 1 3 Power 4 | 1 1 1 . 1 Engine 4 | 1 1 1 . 1 Core . | . . . . . Reactor . | . . . . . Propulsion 6 | 2 2 1 . 1 Treads 2 | 1 . 1 . . Leg . | . . . . . Wheel 4 | 1 2 . . 1 Hover . | . . . . . Flight . | . . . . . Utility 6 | 2 3 . 1 . Device 3 | 1 2 . . . Storage 3 | 1 1 . 1 . Processor . | . . . . . Hackware . | . . . . . Protection . | . . . . . Artifact . | . . . . . Weapon 5 | 2 1 1 . 1 Energy Gun 2 | 2 . . . . Energy Cannon . | . . . . . Ballistic Gun . | . . . . . Ballistic Cannon . | . . . . . Launcher 2 | . . 1 . 1 Special Weapon . | . . . . . Impact Weapon . | . . . . . Slashing Weapon 1 | . 1 . . . Piercing Weapon . | . . . . . Special Melee Weapon . | . . . . . Unidentified Prototypes . | . . . . . Parts Lost 8 | . 2 2 . 4 Power 3 | . 1 1 . 1 Propulsion 3 | . 1 1 . 1 Utility 1 | . . . . 1 Weapon 1 | . . . . 1 Highest Loss Streak 4 | . 1 2 . 4 To Critical Strikes . | . . . . . Average Backups 7 | 1 6 8 10 9 Power . | . . . 1 . Propulsion 1 | 1 1 . 1 . Utility 4 | . 1 5 6 5 Weapon 1 | . 1 2 2 1 Tool/Special . | . . . . . Unused Backups 4 | . . . . 4 Power . | . . . . . Propulsion . | . . . . . Utility 4 | . . . . 4 Weapon . | . . . . . Tool/Special . | . . . . . Average Slot Usage (%) 99 | . 100 98 100 95 Engine 13 | . 14 12 14 14 Treads 14 | . 14 14 14 14 Wheel 13 | . 14 14 14 13 Device 13 | . 14 14 14 12 Storage 14 | . 14 14 14 14 Energy Gun 16 | . 21 14 14 11 Slashing Weapon 10 | . 6 13 14 11 Peak Build Rating 10 | 7 9 9 9 10 Average Rating 8 | 5 7 8 9 8 On Entrance 6 | . 7 8 9 9 Naked Turns . | . . . . . Heaviest Build 28 | 14 20 18 28 28 Greatest Support 20 | 10 20 20 16 16 Greatest Overweight (x) 7 | 1 1 1 1 7 Average Overweight (x) . | . . . 1 1 Largest Inventory Capacity 15 | 8 10 10 15 15 Average Capacity 10 | 7 9 10 11 15 Most Carried 10 | 3 8 10 10 10 Average Carried 7 | 2 6 8 10 9 Final Capacity 15 | 8 10 10 15 15 Final Carried 10 | 3 7 10 10 7 Class Distribution -------------------- 100% | Mutant Dominant Class ---------------- Mutant | -10/Materials Mutant | -10/Mines Mutant | -10/Exiles Mutant | -9/Mines Resources | -11 -10 -10 -10 -9 ----------- Run | Yrd Mat Min Exi Min Matter Collected 485 | 201 179 90 . 15 Remotely . | . . . . . Salvage Created 445 | 13 231 142 . 59 Parts 44 | 2 15 20 . 7 Haulers Intercepted . | . . . . . Recyclers Shooed 3 | . . 2 . 1 Parts Field Recycled . | . . . . . Retrieved Matter . | . . . . . Parts Self-Destructed . | . . . . . Prevented . | . . . . . Kills | -11 -10 -10 -10 -9 ------- Run | Yrd Mat Min Exi Min Combat Hostiles Destroyed 14 | . 8 3 . 3 Guns 10 | . 8 . . 2 AOE 4 | . . 3 . 1 Classes Destroyed 5 | 1 2 2 . . Builder 3 | . . 3 . . Tunneler 2 | 1 . . . 1 Recycler 2 | . . 1 . 1 Swarmer 7 | . 4 3 . . Grunt 7 | . 4 . . 3 Best Kill Streak 3 | 1 3 3 . 2 Combat Bots Only 3 | . 3 3 . 2 Max Kills in Single Turn 1 | 1 1 1 . 1 Gunslinging . | . . . . . Exploded 1 | . . 1 . 1 Melee . | . . . . . Uniques/NPCs Destroyed . | . . . . . Combat | -11 -10 -10 -10 -9 -------- Run | Yrd Mat Min Exi Min Hostile Shots Fired 85 | . 42 7 . 36 Missed 13 | . 6 1 . 6 Hits 72 | . 36 6 . 30 Projectile 72 | . 36 6 . 30 AOE 1 | . . . . 1 Critical Strikes 1 | . . . . 1 Damage Taken 1033 | . 380 121 . 532 Core 256 | . 53 23 . 180 Absorbed by Shields . | . . . . . Core Remaining (%) 100 | 100 . . . . Volleys Fired 67 | 2 41 4 . 20 Largest 2 | 2 2 1 . 1 Hottest 90 | 90 90 30 . 40 Shots Fired 98 | 4 70 4 . 20 Gun 84 | 4 70 . . 10 Cannon . | . . . . . Launcher 14 | . . 4 . 10 Special . | . . . . . Kinetic . | . . . . . Thermal 84 | 4 70 . . 10 Explosive 14 | . . 4 . 10 Electromagnetic . | . . . . . Robot Hit Streak 18 | 3 18 4 . 6 Robot Miss Streak 7 | . 7 1 . 2 Penetration Max . | . . . . . Secondary Targets 1 | . 1 . . . Max Gunslinging Chain 1 | . 1 . . . Shots Hit Robots 69 | 3 45 10 . 11 Core Hits 32 | 1 15 6 . 10 Critical Kills . | . . . . . Critical Parts Destroyed . | . . . . . Critical Strikes 3 | . 3 . . . Burn 3 | . 3 . . . Melee Attacks 55 | . 39 15 . 1 Impact . | . . . . . Slashing 55 | . 39 15 . 1 Piercing . | . . . . . Sneak Attacks 7 | . . 6 . 1 Combat Hostiles . | . . . . . Follow-up Attacks . | . . . . . Damage Inflicted 1682 | 35 530 527 . 590 Guns 648 | 35 530 . . 83 Cannons . | . . . . . Explosions 656 | . . 200 . 456 Melee 378 | . . 327 . 51 Ramming . | . . . . . Kinetic . | . . . . . Thermal 648 | 35 530 . . 83 Explosive 656 | . . 200 . 456 Electromagnetic . | . . . . . Impact . | . . . . . Slashing 378 | . . 327 . 51 Piercing . | . . . . . Highest Corruption . | . . . . . Average Corruption . | . . . . . Corruption Purged . | . . . . . Corruption Blocked . | . . . . . Overload Shots . | . . . . . Overflow Damage 136 | . . 88 . 48 Projectiles . | . . . . . Explosions 76 | . . 49 . 27 Melee 60 | . . 39 . 21 Knockbacks . | . . . . . Impact . | . . . . . Kinetic . | . . . . . Secondary . | . . . . . Self-Inflicted Damage 170 | . . 73 . 97 Shots 6 | . . 3 . 3 Rammed . | . . . . . Targets Rammed . | . . . . . Kicked . | . . . . . Crushed . | . . . . . Highest Temperature 320 | 60 320 . . 25 Average Temperature 89 | 33 105 . . 5 Received Heat Transfer 333 | . 129 . . 204 Effects 4 | . 4 . . . Energy Bleed 1 | . 1 . . . Interference 3 | . 3 . . . Siege Activations . | . . . . . Martial Activations . | . . . . . Shielding Activations . | . . . . . Robots Disrupted . | . . . . . Combat Hostiles . | . . . . . Robots Corrupted . | . . . . . Combat Hostiles . | . . . . . Parts Fried . | . . . . . Impact Corruptions . | . . . . . Robots Melted . | . . . . . Combat Hostiles . | . . . . . Parts Melted 9 | . 9 . . . Heat Transferred 1923 | 99 1624 . . 200 Parts Sabotaged . | . . . . . Parts Stolen . | . . . . . Parts Stripped . | . . . . . Power Chain Reactions . | . . . . . Alert | -11 -10 -10 -10 -9 ------- Run | Yrd Mat Min Exi Min Maximum Alert Level . | . . . . . Low Security (%) 100 | 100 100 100 . 100 Level 1 . | . . . . . Level 2 . | . . . . . Level 3 . | . . . . . Level 4 . | . . . . . Level 5 . | . . . . . High Security . | . . . . . Max Security . | . . . . . Peak Influence 124 | 5 98 124 . 106 Initial 26 | . . 26 . . Average 30 | . 22 40 . 34 Influence Increases 790 | 5 302 312 . 171 Destroy 0b10 Robot/C 420 | . 160 200 . 60 Destroy 0b10 Robot/NC 35 | 5 . 20 . 10 Destroy Leader 70 | . 40 20 . 10 Allied During Kill 8 | . . 8 . . Successful Hack 24 | . 24 . . . Disable Machine 75 | . . 45 . 30 Destroy Structure 98 | . 18 19 . 61 Lose Combat Pursuer 60 | . 60 . . . Influence Decreases 694 | 5 233 289 92 75 Entered New Map 135 | . . 43 92 . Time Decay 473 | 5 222 216 . 30 Lost Part 61 | . 11 10 . 40 Lost Ally 25 | . . 20 . 5 Squads Dispatched 1 | . 1 . . . Investigation 1 | . 1 . . . Extermination . | . . . . . Reinforcement . | . . . . . Assault . | . . . . . Garrison . | . . . . . Intercept . | . . . . . Searches Triggered . | . . . . . Construction Impeded . | . . . . . Haulers Reinforced . | . . . . . Active Scanning Responses . | . . . . . Cargo Convoy Interrupts . | . . . . . Stealth | -11 -10 -10 -10 -9 --------- Run | Yrd Mat Min Exi Min Distress Signals 1 | . 1 . . . Communications Jammed . | . . . . . Distress Signals . | . . . . . Times Spotted 37 | . 18 6 . 13 Peak Tracking Total 5 | . 5 3 . 5 Tactical Retreats 2 | . 2 . . . Traps | -11 -10 -10 -10 -9 ------- Run | Yrd Mat Min Exi Min Traps Triggered 1 | . 1 . . . Indirectly . | . . . . . Trap Hack Attempts . | . . . . . Triggered . | . . . . . Disarmed . | . . . . . Reprogrammed . | . . . . . Reused . | . . . . . Traps Extracted . | . . . . . Installed . | . . . . . Triggered . | . . . . . Machines | -11 -10 -10 -10 -9 ---------- Run | Yrd Mat Min Exi Min Machines Disabled 5 | . . 3 . 2 Max in Single Turn 1 | . . 1 . 1 Machines Repaired . | . . . . . Machines Dismantled . | . . . . . Machines Sabotaged . | . . . . . Overloaded Fab Kills . | . . . . . Hacking | -11 -10 -10 -10 -9 --------- Run | Yrd Mat Min Exi Min Machines Accessed 10 | . 5 1 4 . Terminals 5 | . 4 1 . . Fabricators . | . . . . . Repair Stations . | . . . . . Recycling Units 1 | . 1 . . . Scanalyzers . | . . . . . Garrison Access . | . . . . . Total Hacks 22 | . 16 2 4 . Successful 15 | . 10 1 4 . Failed 7 | . 6 1 . . Catastrophic . | . . . . . Database Lockouts . | . . . . . Manual 7 | . 7 . . . Terminals 14 | . 12 2 . . Fabricators . | . . . . . Repair Stations . | . . . . . Recycling Units 4 | . 4 . . . Scanalyzers . | . . . . . Garrison Access . | . . . . . Terminal Hacks 9 | . 4 1 4 . Record 4 | . . . 4 . Robot Analysis 1 | . 1 . . . Branch Access Points 1 | . 1 . . . Zone Layout 3 | . 2 1 . . Fabricator Hacks . | . . . . . Repair Station Hacks . | . . . . . Recycling Unit Hacks 1 | . 1 . . . Report Inventory 1 | . 1 . . . Scanalyzer . | . . . . . Garrison Access Hacks . | . . . . . Unauthorized Hacks 3 | . 3 . . . Terminals 3 | . 3 . . . Assimilate 1 | . 1 . . . Botnet 2 | . 2 . . . Fabricators . | . . . . . Repair Stations . | . . . . . Recycling Units . | . . . . . Scanalyzers . | . . . . . Garrison Access . | . . . . . Data Cores Recovered . | . . . . . Used . | . . . . . Hacking Detections 4 | . 3 1 . . Full Trace Events 1 | . 1 . . . Feedback Events . | . . . . . Feedback Blocked . | . . . . . Robot Schematics Acquired . | . . . . . Robots Built . | . . . . . Authchips . | . . . . . Time . | . . . . . Total Robot Build Rating . | . . . . . Part Schematics Acquired . | . . . . . Parts Built . | . . . . . Authchips . | . . . . . Time . | . . . . . Total Part Build Rating . | . . . . . Parts Repaired . | . . . . . Time . | . . . . . Parts Recycled . | . . . . . Recycled Matter . | . . . . . Retrieved Matter . | . . . . . Retrieved Components . | . . . . . Parts Scanalyzed . | . . . . . Part Schematics Acquired . | . . . . . Parts Damaged . | . . . . . Bothacking | -11 -10 -10 -10 -9 ------------ Run | Yrd Mat Min Exi Min Used RIF Installer . | . . . . . Robots Hacked . | . . . . . Non-combat . | . . . . . Combat . | . . . . . Robot Hacks Applied . | . . . . . Relay Couplers Released . | . . . . . Fabnet Peak Effective % . | . . . . . Robots Rewired . | . . . . . Allies Hacked . | . . . . . Hacks Repelled . | . . . . . Allies | -11 -10 -10 -10 -9 -------- Run | Yrd Mat Min Exi Min Total Allies 4 | . . 1 . 3 Largest Group 3 | . . 1 . 3 Highest-Rated Group 40 | . . 31 . 40 Highest-Rated Ally 31 | . . 31 . 16 Total Orders 1 | . . . . 1 GUARD 1 | . . . . 1 Ally Attacks 42 | . . 22 . 20 Total Damage 519 | . . 359 . 160 Kills 10 | . . 8 . 2 Allies Corrupted . | . . . . . Allies Melted . | . . . . . Intel | -11 -10 -10 -10 -9 ------- Run | Yrd Mat Min Exi Min Active Infowar (turns) 2400 | 10 765 799 712 114 Seismic 2400 | 10 765 799 712 114 Robot Analysis Total 1 | . 1 . . . Derelict Logs Recovered 2 | . . 2 . . Drone Launches . | . . . . . Drone Recoveries . | . . . . . Exploration | -11 -10 -10 -10 -9 ------------- Run | Yrd Mat Min Exi Min Turns Passed 2806 | 68 961 889 712 176 Spaces Moved 1924 | 54 548 599 619 104 Core 4 | 3 . . . 1 Treads 344 | . 59 285 . . Legs . | . . . . . Wheels 1576 | 51 489 314 619 103 Hover . | . . . . . Flight . | . . . . . Fastest Speed 50 | 50 95 115 115 110 Average Speed 120 | 90 112 136 115 116 Slowest Speed 400 | 95 160 160 115 400 Overloaded Moves . | . . . . . Propulsion Burnouts . | . . . . . Robots Hopped . | . . . . . Potential Cave-ins . | . . . . . Cave-ins Triggered . | . . . . . Exploration Rate (%) 58 | 5 73 93 93 28 Regions Visited 4 Branch Regions 3 Pre-discovered Areas . | . . . . . Known Exits Taken 1 | . 1 . . . Unknown Exits Taken 3 | 1 . 1 1 . Scrap Searched . | . . . . . Spaces Dug 18 | . 18 . . . Terrain Destroyed 118 | . 18 19 . 81 Melee 18 | . 18 . . . Projectile . | . . . . . AOE 100 | . . 19 . 81 Terrain Rammed . | . . . . . Walls Destroyed . | . . . . . Machines Disabled . | . . . . . Actions | -11 -10 -10 -10 -9 --------- Run | Yrd Mat Min Exi Min Total 2198 | 66 741 635 620 136 Wait 105 | . 92 11 . 2 Move 1920 | 53 547 598 618 104 Hop . | . . . . . Pick Up 15 | 4 6 3 . 2 Fast Attach 7 | 6 . 1 . . Attach 8 | 1 2 1 . 4 Detach . | . . . . . Swap 17 | . 12 2 1 2 Drop 4 | . 2 . 1 1 Fire 67 | 2 41 4 . 20 Melee 55 | . 39 15 . 1 Ram . | . . . . . Kick . | . . . . . Crush . | . . . . . Escape Stasis . | . . . . . Rewire . | . . . . . Trap . | . . . . . Miscellaneous . | . . . . . Route ------- -11/Scrapyard -10/Materials (discovered 4 exits: [*Mat x3] / *Min) -10/Mines (discovered 4 exits: [*Mat x2] / *Exi / [*Sub]) -10/Exiles (discovered 2 exits: [*Min x2]) -9/Mines History --------- Turn | Location | Event 17 | -11/Scrapyard | Discovered new exit (range 15) 69 | -11/Scrapyard | Entered Materials 275 | -10/Materials | Discovered new exit (range 16) 314 | -10/Materials | Build established: Mutant 489 | -10/Materials | Discovered new exit (range 13) 489 | -10/Materials | Identified exit to Mines 862 | -10/Materials | Discovered new exit (range 16) 1030 | -10/Materials | Entered Mines 1056 | -10/Mines | Learned 8 Materials zone layouts 1067 | -10/Mines | Found a damaged Exp. Sensor Array with a note attached 1070 | -10/Mines | Found Prototype Device 1131 | -10/Mines | Learned Materials stockpile data 1209 | -10/Mines | Deemed a non-threat by the Exiles lab entrance 1209 | -10/Mines | Discovered new exit (range 5) 1413 | -10/Mines | Discovered new exit (range 12) 1567 | -10/Mines | Discovered new exit (range 9) 1583 | -10/Mines | Received a Mining Laser from a helpful Derelict 1758 | -10/Mines | Discovered new exit (range 8) 1802 | -10/Mines | Excavation squad dispatched 1802 | -10/Mines | A large section of the Mines collapsed 1919 | -10/Mines | Entered Exiles 1919 | -10/Exiles | Found Exiles lab abandoned 1937 | -10/Exiles | Discovered new exit (range 15) 2617 | -10/Exiles | Discovered new exit (range 14) 2631 | -10/Exiles | Entered Mines 2648 | -9/Mines | Assisted by bots powering up and referring to "LRC-V3" 2657 | -9/Mines | Assembled infested the area 2662 | -9/Mines | Assisted by a Guerilla fighting off Assembled 2722 | -9/Mines | Received a Rocket Launcher from a helpful Derelict 2728 | -9/Mines | Lost 3 allies 2738 | -9/Mines | Core integrity fell below 50% 2756 | -9/Mines | Core integrity fell below 20% 2782 | -9/Mines | Lost 4 parts (1p1n1u1w) 2807 | -9/Mines | Destroyed by as-24117 with Assembled Rifle Last Messages --------------- 02768_ G-34 Mercenary destroyed. 02770_ The unstable cave ceiling collapses. 02770_ U-05 Engineer lays Concrete. 02774_ G-47 Trooper destroyed. 02775_ The unstable cave ceiling collapses. 02775_ U-05 Engineer lays Concrete. 02778_ Acquired 1 matter. 02778_ U-05 Engineer builds a Wall. 02779_ Acquired 4 matter. 02782_ U-05 Engineer builds a Wall. 02783_ Acquired Grenade Launcher. 02784_ The unstable cave ceiling collapses. 02784_ Sml. Storage Unit crushed. 02787_ K-01 Serf collects debris. 02788_ U-05 Engineer lays Concrete. 02792_ K-01 Serf collects debris. 02793_ U-05 Engineer lays Concrete. 02793_ U-05 Engineer builds a Wall. 02794_ U-05 Engineer lays Concrete. 02795_ K-01 Serf collects debris. Map ----- +----------------------------------------------------+ | ?????????????????????????????????????????????????? | | ?????????????????????????????????????????????????? | | ?????????????????????????????????????????????????? | | ?????????????????????????????????????????????????? | | ?????????????????????????????????????????????????? | | ?????????????????????????????????????????????????? | | ?????????????????????????????????????????????????? | | ???????????????? ????????????????????????????????? | | ?????????????? ??????????????????????????????? | | ?????????????? ??????????????????????????????? | | ?????????????? ??????????????????????????????? | | ??????????????? ??????????????????????????????? | | ??????????????? ??????????????????????????????? | | ???????????????? #?????????????????????????????? | | ???????????????? ?????????????????????????????? | | ????????????????? #????????????????????????????? | | ?????????????????# #????????##??????????????????? | | ?????????????????# #??????? ##?????????????????? | | ?????????????????# #??????? ####??????????????? | | ??????############ ####??? ## ??????????????? | | ????? #### ### #??????????????? | | ????? # # ########???????? | | ????????????##### # # ###" # ##??????? | | ????????????????# #### ####?## # ##?????? | | ????????????????# #t#######%#% % #?????? | | ????????????????## #@ a%aaa# # #?????? | | ????????????????# # # ########## # ##?????? | | ????????????????# #?????# ##??????? | | ????????????????## #?????## ##??####?# | | ????????????????# #????### #??## ## | | ???????????????# # ???# | ##??# | | ???????????????## ?# ! #### | | ??????????????? ## | | ?????????????? ###" | | ????????????? ###??" ##### #### | | ???????????? # # # ????#=* ##??# ##??? | | ??????????? #### #???#%!##??# #???? | | ?????????? #??? ##???#! #??# ##???? | | ?????????? #????#????# #? ##????? | | ????????????? # #?????????#*!# #??????? | | ???????????????# ? #?????????#%*# ???????? | | ????????????????? ? ??????????#!=# ???????? | | ??????????????????? ? ??????????#=%## ???????? | | ?????????????????????????????????#%!### ????????? | | ?????????????????????????????????# #?###????????? | | ?????????????????????????????????# #????????????? | | ?????????????????????????????????# %#????????????? | | ?????????????????????????????????# #????????????? | | ????????????????????????????????? ????????????? | | ?????????????????????????????????## ????????????? | +----------------------------------------------------+ Best States ------------- Heat Dissipation 39 Energy Generation 10 Energy Capacity 250 Matter Stores 300 Matter Capacity 300 Sight Range 16 Terrain Scan Density 10 Evasion (%) 44 Recoil Reduction 1 Item Schematics ----------------- None Robot Schematics ------------------ None Fabricated ------------ Nothing Repaired ---------- Nothing Alien Tech Used ----------------- None Achievements -------------- None Challenges ------------ None Game ------ Seed GunProcessingArmor Manual? 0 Play Time 00:27:40 Cumulative 55.3 hours Start 2025.05.27 @ 10:45:19 End 2025.05.27 @ 11:13:39 Sessions 1 Manual Loads 0 Difficulty Rogue Special Mode None Game No. 59 Rogue 59 Adventurer 0 Explorer 0 Win Type - Total 0 Types 0/0/0/0/0/0/0/0/0/0 Lore% 32 Gallery% 29 Achievement% 26 Wizard Run 0 Options --------- Layout 0 ASCII 0 Keyboard 1 Movement Numpad Keybinds 0 Fullscreen 2 Font 18/SmallcapsGlow Map View 76x50 Zoom Use 0% Tactical HUD 1 Map Filters NONE Filters NONE Steam 1 RUN: fa9af139-2303-44e0-ad8b-e00505dbf7c3